bitfinex/quotes_SOLUSD_20251024
["timestamp","ask_amount","ask_price","bid_price","bid_amount"]
[1761334913855,36.04,193.62,193.59,72.22872915]
[1761334914056,36.72,193.62,193.59,72.22872915]
[1761334915762,0.68,193.61,193.59,72.22872915]
[1761334915940,0.68,193.61,193.59,67.06317479]
[1761334916144,36.02,193.62,193.59,67.06317479]
[1761334916350,36.02,193.62,193.59,67.76317479]
[1761334916850,36.7,193.62,193.59,67.06317479]
[1761334917343,36.02,193.62,193.59,67.06317479]
[1761334917660,0.67,193.61,193.59,67.06317479]
[1761334918060,0.67,193.61,193.59,61.8986589]
[1761334918254,2.89452597,193.61,193.59,61.8986589]
[1761334918764,0.67,193.6,193.59,61.8986589]
[1761334920364,2.89452597,193.6,193.59,61.8986589]
[1761334920555,0.67,193.6,193.59,61.8986589]
[1761334925160,36.02,193.6,193.59,61.8986589]
[1761334926055,36.69,193.6,193.59,61.8986589]
[1761334929658,40.16177405,193.6,193.59,61.8986589]
[1761334930043,60.84657909,193.6,193.59,61.8986589]
[1761334932173,33.75647521,193.59,193.49,16.17951579]
[1761334932365,3.47177405,193.53,193.49,0.66]
[1761334932572,39.49177405,193.53,193.49,0.66]
[1761334932760,55.68530513,193.53,193.49,5.82817094]
[1761334933076,3.47177405,193.52,193.49,5.82817094]
[1761334933374,9.29994499,193.52,193.49,5.82817094]
[1761334933577,36.02,193.52,193.49,5.82817094]
[1761334937176,39.49177405,193.52,193.49,0.66]
[1761334937383,3.47177405,193.5,193.47,61.8986589]
[1761334937778,4.14177405,193.5,193.47,61.8986589]
[1761334937966,3.47177405,193.49,193.47,61.8986589]
[1761334938161,0.67,193.5,193.47,61.8986589]
[1761334938162,4.14177405,193.5,193.47,61.8986589]
[1761334939178,36.02,193.49,193.47,61.8986589]
[1761334940466,40.16177405,193.5,193.47,61.8986589]
[1761334940667,3.47177405,193.49,193.47,61.8986589]
[1761334941388,40.16177405,193.5,193.47,61.8986589]
[1761334943478,36.69,193.5,193.47,61.8986589]
[1761334943674,36.02,193.51,193.48,0.71]
[1761334945086,36.02,193.51,193.48,5.87844452]
[1761334945588,36.02,193.51,193.49,0.71]
[1761334947186,0.69,193.5,193.49,61.8986589]
[1761334947486,39.49177405,193.51,193.49,61.8986589]
[1761334947684,40.18177405,193.51,193.49,61.8986589]
[1761334949070,39.49177405,193.51,193.49,61.8986589]
[1761334949274,40.18177405,193.51,193.49,61.8986589]
[1761334949683,4.16177405,193.5,193.49,61.8986589]
[1761334950696,3.47177405,193.5,193.49,61.8986589]
[1761334950860,0.69,193.5,193.49,61.8986589]
[1761334954169,9.3297327,193.5,193.49,61.8986589]
[1761334959196,36.02,193.5,193.49,62.6086589]
[1761334959400,36.02,193.5,193.49,61.8986589]
[1761334959769,36.71,193.5,193.49,61.8986589]
[1761334960009,36.02,193.5,193.49,61.8986589]
[1761334961097,36.71,193.51,193.49,61.8986589]
[1761334961997,0.69,193.51,193.49,61.8986589]
[1761334962295,36.02,193.51,193.49,61.8986589]
[1761334962598,0.69,193.51,193.49,61.8986589]
[1761334962896,36.71,193.51,193.49,61.8986589]
[1761334965283,39.49177405,193.51,193.49,61.8986589]
[1761334965484,45.34949692,193.51,193.49,61.8986589]
[1761334966487,0.69,193.5,193.49,61.8986589]
[1761334967203,41.87772287,193.51,193.49,61.8986589]
[1761334967993,45.34949692,193.51,193.49,61.8986589]
[1761334971710,9.32949692,193.51,193.49,61.8986589]
[1761334971888,36.02,193.5,193.49,61.8986589]
[1761334974219,40.19177405,193.5,193.49,61.8986589]
[1761334975415,36.72,193.5,193.49,61.8986589]
[1761334976114,40.19177405,193.5,193.49,61.8986589]
[1761334976619,45.3597327,193.5,193.46,62.0986589]
[1761334976922,4.17177405,193.49,193.46,62.0986589]
[1761334977216,36.0,193.48,193.46,62.0986589]
[1761334979110,36.69,193.48,193.46,62.0986589]
[1761334979633,36.0,193.48,193.46,62.0986589]
[1761334980118,41.85850872,193.48,193.46,0.2]
[1761334980319,36.69,193.48,193.46,0.2]
[1761334980813,5.85785739,193.51,193.47,0.7]
[1761334981018,36.0,193.5,193.47,0.7]
[1761334981212,9.32963144,193.51,193.47,0.7]
[1761334981418,36.0,193.49,193.47,0.7]
[1761334981820,36.0,193.49,193.46,8.84077732]
[1761334982017,0.69,193.53,193.48,3.47177405]
[1761334982209,36.0,193.52,193.49,3.47177405]
[1761334982412,36.0,193.52,193.49,0.7]
[1761334982606,36.69,193.52,193.48,61.8986589]
[1761334982804,5.02881701,193.64,193.52,33.75647521]
[1761334983112,14.16,193.63,193.58,3.47177405]
[1761334983415,14.16,193.63,193.59,7.2695264]
[1761334983614,14.85,193.63,193.6,3.79775235]
[1761334983815,20.014591,193.63,193.61,3.79775235]
[1761334984129,20.014591,193.63,193.59,3.47177405]
[1761334985220,14.16,193.63,193.59,4.17177405]
[1761334985421,4.16177405,193.68,193.62,3.47177405]
[1761334985630,34.6,193.67,193.64,3.47177405]
[1761334985816,34.6,193.67,193.65,3.47177405]
[1761334986318,5.16291909,193.69,193.65,4.17177405]
[1761334986522,36.0,193.68,193.65,3.47177405]
[1761334987320,0.69,193.68,193.63,5.16446471]
[1761334987615,36.69,193.68,193.63,8.63623876]
[1761334987814,36.69,193.68,193.63,9.33623876]
[1761334988308,3.47177405,193.66,193.6,4.17177405]
[1761334988708,0.69,193.65,193.6,4.17177405]
[1761334989512,8.63554902,193.66,193.61,0.7]
[1761334990048,0.69,193.65,193.6,8.63695663]
[1761334990511,0.69,193.65,193.6,9.33695663]
[1761334990711,0.69,193.65,193.6,8.08587917]
[1761334991014,2.91069659,193.65,193.6,0.7]
[1761334991236,2.91069659,193.65,193.6,8.08597804]
[1761334991432,0.69,193.64,193.6,8.08597804]
[1761334991607,2.91069659,193.64,193.59,7.38624234]
[1761334991817,2.91069659,193.64,193.59,8.08624234]
[1761334992124,0.69,193.63,193.59,8.08624234]
[1761334992327,0.69,193.63,193.59,5.86554575]
[1761334993034,0.69,193.63,193.59,8.08624234]
[1761334994652,2.91069659,193.63,193.59,61.8986589]
[1761334995028,0.69,193.62,193.59,61.8986589]
[1761334995349,8.07526368,193.63,193.59,62.5986589]
[1761334996323,8.07526368,193.63,193.59,67.76420881]
[1761334996627,2.91069659,193.63,193.59,67.76420881]
[1761334997647,2.91069659,193.63,193.59,62.5986589]
[1761334998337,2.22069659,193.61,193.59,61.8986589]
[1761334998547,2.22069659,193.62,193.59,61.8986589]
[1761334998738,0.69,193.61,193.59,61.8986589]
[1761334999036,2.22069659,193.62,193.59,61.8986589]
[1761334999446,2.92069659,193.62,193.59,61.8986589]
[1761334999652,0.7,193.62,193.59,61.8986589]
[1761335000145,2.92069659,193.62,193.59,61.8986589]
[1761335001446,7.38539509,193.63,193.59,62.5586589]
[1761335001650,8.08539509,193.63,193.59,61.8986589]
[1761335001856,0.7,193.62,193.59,61.8986589]
[1761335003434,7.38524572,193.63,193.59,62.5586589]
[1761335003644,8.08524572,193.63,193.59,62.5586589]
[1761335004954,7.38524572,193.63,193.59,62.5586589]
[1761335005131,0.7,193.62,193.59,61.8986589]
[1761335005331,8.08524572,193.63,193.59,62.5586589]
[1761335006455,5.86454913,193.63,193.59,62.5586589]
[1761335006957,8.08524572,193.63,193.59,62.5586589]
[1761335007651,8.08524572,193.63,193.59,61.8986589]
[1761335007838,8.08524572,193.63,193.6,0.66]
[1761335008652,2.92069659,193.63,193.59,67.72420255]
[1761335010755,0.7,193.62,193.59,61.8986589]
[1761335011165,5.86477551,193.62,193.59,61.8986589]
[1761335013354,0.7,193.61,193.59,61.8986589]
[1761335016360,7.3854721,193.62,193.59,62.5586589]
[1761335016753,5.16477551,193.62,193.59,62.5586589]
[1761335018169,2.22069659,193.63,193.59,67.06418148]
[1761335018355,35.96,193.63,193.6,0.66]
[1761335019452,41.12452487,193.63,193.6,0.66]
[1761335020852,5.16452487,193.63,193.6,0.66]
[1761335021470,5.86452487,193.63,193.6,61.8986589]
[1761335021882,5.16452487,193.63,193.6,62.5586589]
[1761335023266,5.86452487,193.63,193.6,62.5586589]
[1761335023474,5.16452487,193.63,193.6,62.5586589]
[1761335027178,5.86452487,193.63,193.6,62.5586589]
[1761335027857,41.82452487,193.63,193.6,62.5586589]
[1761335028063,41.12452487,193.63,193.6,62.5586589]
[1761335028466,41.82452487,193.63,193.6,62.5586589]
[1761335029679,41.82452487,193.63,193.6,62.6086589]
[1761335031258,41.82452487,193.63,193.6,61.8986589]
[1761335031869,5.86452487,193.63,193.6,61.8986589]
[1761335032060,41.82452487,193.63,193.6,61.8986589]
[1761335034083,44.04522146,193.63,193.6,61.8986589]
[1761335035679,0.72,193.62,193.6,61.8986589]
[1761335036276,5.88485059,193.62,193.6,61.8986589]
[1761335036588,8.10554718,193.62,193.6,61.8986589]
[1761335036787,2.94069659,193.61,193.6,61.8986589]
[1761335037983,2.22069659,193.62,193.6,61.8986589]
[1761335038194,43.34526053,193.63,193.6,62.5686589]
[1761335038577,44.04526053,193.63,193.6,61.8986589]
[1761335039078,36.66,193.62,193.6,61.8986589]
[1761335040471,5.16456394,193.63,193.6,62.5686589]
[1761335040668,35.96,193.62,193.6,62.5686589]
[1761335040997,5.86456394,193.63,193.6,61.8986589]
[1761335041195,35.96,193.63,193.6,62.5686589]
[1761335041491,36.66,193.63,193.6,61.8986589]
[1761335042685,8.08466492,193.65,193.61,0.67]
[1761335042989,35.78918536,193.67,193.61,2.89069659]
[1761335042990,5.16375187,193.66,193.61,2.89069659]
[1761335043174,35.96,193.66,193.61,64.78935549]
[1761335043380,36.66,193.66,193.62,2.89069659]
[1761335043700,36.66,193.66,193.62,0.67]
[1761335044201,35.96,193.66,193.62,0.67]
[1761335044374,35.96,193.66,193.62,5.83462526]
[1761335044572,36.66,193.66,193.62,5.83462526]
[1761335045194,0.7,193.66,193.62,5.83462526]
[1761335045399,36.64,193.66,193.62,5.83462526]
[1761335048095,36.64,193.66,193.62,67.73328416]
[1761335048984,0.7,193.66,193.62,67.73328416]
[1761335049185,36.64,193.66,193.62,67.73328416]
[1761335049374,36.64,193.66,193.62,67.06328416]
[1761335049668,0.7,193.65,193.62,67.06328416]
[1761335052279,35.94,193.66,193.62,67.06328416]
[1761335052486,36.64,193.66,193.62,67.73328416]
[1761335052989,36.64,193.66,193.62,67.06328416]
[1761335053178,0.7,193.66,193.63,0.67]
[1761335053499,0.7,193.68,193.63,0.67]
[1761335053694,35.94,193.67,193.63,0.67]
[1761335054072,35.94,193.67,193.64,5.16422226]
[1761335054599,5.86240083,193.71,193.66,3.46972222]
[1761335054779,3.46972222,193.68,193.66,61.8986589]
[1761335055098,40.10972222,193.67,193.62,67.06340572]
[1761335055403,3.46972222,193.66,193.62,67.06340572]
[1761335055575,4.16972222,193.66,193.62,67.73340572]
[1761335057100,5.16335292,193.68,193.62,67.73340572]
[1761335057101,5.16281111,193.7,193.63,4.13972222]
[1761335057288,39.40972222,193.69,193.63,4.13972222]
[1761335057490,4.16972222,193.7,193.64,4.13972222]
[1761335057698,3.46972222,193.71,193.65,4.13972222]
[1761335057882,3.46972222,193.71,193.66,0.67]
[1761335057883,35.94,193.7,193.66,0.67]
[1761335058082,35.94,193.7,193.66,17.14432681]
[1761335058282,0.7,193.7,193.66,17.14432681]
[1761335058496,0.7,193.7,193.66,18.83807891]
[1761335058875,0.7,193.7,193.66,5.83347432]
[1761335059699,0.7,193.7,193.66,9.29319654]
[1761335060105,4.16972222,193.7,193.66,5.16347432]
[1761335060487,0.7,193.69,193.66,5.16347432]
[1761335061107,56.61225721,193.71,193.69,22.88]
[1761335061108,15.50988755,193.71,193.69,22.88]
[1761335061294,0.1,193.73,193.7,40.06972222]
[1761335061700,0.1,193.73,193.71,8.95157359]
[1761335061909,0.1,193.73,193.71,5.82235609]
[1761335067508,0.1,193.73,193.71,5.16235609]
[1761335067692,0.1,193.73,193.72,5.82208961]
[1761335067893,0.1,193.73,193.72,5.16208961]
[1761335068821,0.1,193.73,193.72,5.82208961]
[1761335070619,0.1,193.73,193.72,5.16208961]
[1761335071920,0.1,193.73,193.72,67.06074851]
[1761335072905,4.26972222,193.73,193.72,61.8986589]
[1761335073220,9.43154537,193.73,193.65,67.71941958]
[1761335073423,3.46972222,193.7,193.65,67.71941958]
[1761335073628,3.46972222,193.7,193.65,62.5586589]
[1761335073923,0.7,193.69,193.65,62.5586589]
[1761335074320,0.7,193.69,193.66,5.16368893]
[1761335077826,0.7,193.69,193.66,67.06234783]
[1761335078013,8.63208368,193.71,193.66,67.06234783]
[1761335078330,0.7,193.7,193.66,67.72234783]
[1761335078710,0.7,193.7,193.66,67.06234783]
[1761335079124,3.46972222,193.69,193.66,61.8986589]
[1761335079515,0.7,193.68,193.66,61.8986589]
[1761335083217,36.62,193.7,193.66,67.72224982]
[1761335083526,0.7,193.69,193.66,67.06224982]
[1761335084708,36.62,193.7,193.66,67.72224982]
[1761335084909,35.92,193.7,193.66,67.06224982]
[1761335085251,0.7,193.69,193.66,67.06224982]
[1761335085931,0.7,193.69,193.66,61.8986589]
[1761335086122,36.62,193.69,193.66,61.8986589]
[1761335086636,0.7,193.68,193.66,61.8986589]
[1761335088106,9.33296137,193.68,193.66,61.8986589]
[1761335088519,0.7,193.67,193.66,61.8986589]
[1761335092820,36.62,193.67,193.66,61.8986589]
[1761335093348,41.78342231,193.67,193.66,61.8986589]
[1761335095525,45.25314453,193.67,193.66,61.8986589]
[1761335098846,41.78342231,193.67,193.66,61.8986589]
[1761335099432,45.25314453,193.67,193.66,61.8986589]
[1761335100556,41.78342231,193.67,193.66,61.8986589]
[1761335100736,45.25314453,193.67,193.66,61.8986589]
[1761335101051,45.25314453,193.67,193.61,61.8986589]
[1761335101355,3.46972222,193.65,193.61,61.8986589]
[1761335101658,36.63,193.64,193.61,61.8986589]
[1761335102153,0.71,193.63,193.61,61.8986589]
[1761335102359,36.63,193.64,193.61,61.8986589]
[1761335102674,35.92,193.63,193.61,61.8986589]
[1761335103956,36.63,193.63,193.61,61.8986589]
[1761335104750,0.71,193.63,193.61,61.8986589]
[1761335105052,36.63,193.63,193.61,61.8986589]
[1761335105653,41.08452425,193.63,193.61,61.8986589]
[1761335105866,4.17972222,193.62,193.61,61.8986589]
[1761335106665,19.69763247,193.62,193.61,61.8986589]
[1761335106961,24.86238817,193.62,193.61,61.8986589]
[1761335109752,9.34447792,193.62,193.61,61.8986589]
[1761335109960,60.80238817,193.62,193.61,61.8986589]
[1761335110365,45.28447792,193.62,193.61,61.8986589]
[1761335111774,41.1047557,193.62,193.61,61.8986589]
[1761335112148,41.8147557,193.62,193.61,61.8986589]
[1761335112479,45.28447792,193.62,193.61,61.8986589]
[1761335112848,44.03631573,193.62,193.61,61.8986589]
[1761335114346,12.91046855,193.65,193.61,62.5586589]
[1761335114347,5.16395558,193.65,193.61,62.5586589]
[1761335114567,35.94,193.64,193.61,61.8986589]
[1761335114784,38.87156003,193.64,193.61,61.8986589]
[1761335114960,2.22156003,193.62,193.56,69.94652056]
[1761335115167,35.94,193.61,193.56,69.94652056]
[1761335115360,36.65,193.61,193.57,0.66]
[1761335115946,36.65,193.61,193.57,5.82607629]
[1761335116748,0.71,193.61,193.57,5.82607629]
[1761335116949,35.94,193.6,193.57,5.82607629]
[1761335117156,35.94,193.6,193.57,67.72473519]
[1761335117865,35.94,193.6,193.57,69.94629522]
[1761335118065,35.94,193.6,193.57,67.72473519]
[1761335118268,35.94,193.6,193.57,69.94629522]
[1761335119260,35.94,193.6,193.57,67.72473519]
[1761335119883,36.6,193.6,193.57,67.06473519]
[1761335120454,43.32696354,193.6,193.57,61.8986589]
[1761335120654,7.38738294,193.58,193.57,61.8986589]
[1761335120875,8.04738294,193.58,193.57,61.8986589]
[1761335121073,48.85322314,193.6,193.57,61.8986589]
[1761335121074,2.22156003,193.59,193.57,61.8986589]
[1761335121282,35.94,193.58,193.57,61.8986589]
[1761335126882,41.76582291,193.58,193.57,61.8986589]
[1761335127081,43.98738294,193.58,193.57,61.8986589]
[1761335128962,41.76582291,193.58,193.57,61.8986589]
[1761335129165,43.98738294,193.58,193.57,61.8986589]
[1761335129786,43.98738294,193.58,193.53,61.8986589]
[1761335129986,2.22156003,193.55,193.53,61.8986589]
[1761335130288,35.94,193.54,193.53,61.8986589]
[1761335131887,41.76689056,193.54,193.53,61.8986589]
[1761335132072,43.98845059,193.54,193.53,61.8986589]
[1761335132271,43.98845059,193.54,193.48,103.0]
[1761335132272,43.98845059,193.54,193.5,61.8986589]
[1761335132478,2.88156003,193.53,193.5,61.8986589]
[1761335132677,35.94,193.52,193.5,61.8986589]
[1761335132872,38.16156003,193.52,193.48,67.76713442]
[1761335133275,38.82156003,193.52,193.48,67.76713442]
[1761335135094,43.3289878,193.52,193.48,67.76713442]
[1761335135299,2.88156003,193.51,193.48,67.06713442]
[1761335135679,2.88156003,193.51,193.48,61.8986589]
[1761335136797,2.22156003,193.49,193.48,61.8986589]
[1761335137100,38.16156003,193.49,193.48,61.8986589]
[1761335137280,35.94,193.49,193.48,61.8986589]
[1761335137698,2.22156003,193.51,193.48,62.5986589]
[1761335137887,35.94,193.5,193.48,62.5986589]
[1761335138795,2.22156003,193.52,193.48,61.8986589]
[1761335139000,35.94,193.51,193.49,0.7]
[1761335139483,35.94,193.51,193.48,61.8986589]
[1761335139677,35.94,193.51,193.48,62.5986589]
[1761335140601,41.10772676,193.51,193.48,61.8986589]
[1761335140789,2.22156003,193.49,193.48,61.8986589]
[1761335141187,2.88156003,193.49,193.48,61.8986589]
[1761335142791,8.04978577,193.49,193.48,61.8986589]
[1761335148806,0.66,193.49,193.48,61.8986589]
[1761335149313,36.6,193.49,193.48,61.8986589]
[1761335149683,38.82156003,193.49,193.48,61.8986589]
[1761335149913,43.98978577,193.49,193.48,61.8986589]
[1761335150403,8.04978577,193.49,193.48,61.8986589]
[1761335150583,43.98978577,193.49,193.48,61.8986589]
[1761335151992,43.98978577,193.49,193.46,62.0986589]
[1761335152210,2.94156003,193.48,193.46,62.0986589]
[1761335152592,0.72,193.47,193.46,62.0986589]
[1761335152814,2.94156003,193.47,193.46,62.0986589]
[1761335153319,38.16156003,193.47,193.46,62.0986589]
[1761335153610,38.88156003,193.47,193.46,62.0986589]
[1761335153915,44.05032004,193.47,193.46,62.0986589]
[1761335155225,44.05032004,193.47,193.46,0.2]
[1761335161319,22.88,193.51,193.46,0.2]
[1761335161320,23.57,193.51,193.46,0.92]
[1761335161532,2.91156003,193.5,193.46,62.8186589]
[1761335161833,38.18156003,193.49,193.46,62.0986589]
[1761335162124,38.87156003,193.49,193.46,62.0986589]
[1761335162707,2.22156003,193.48,193.46,62.0986589]
[1761335162916,2.91156003,193.48,193.46,62.0986589]
[1761335163117,2.22156003,193.48,193.46,62.0986589]
[1761335163330,0.69,193.47,193.46,62.0986589]
[1761335163508,2.91156003,193.48,193.46,62.0986589]
[1761335165009,8.08009206,193.48,193.46,62.0986589]
[1761335165204,7.39009206,193.48,193.46,62.0986589]
[1761335165405,2.22156003,193.48,193.46,62.0986589]
[1761335168530,7.39008914,193.48,193.46,62.0986589]
[1761335168747,5.16852911,193.48,193.46,62.8186589]
[1761335168928,7.39008914,193.48,193.46,0.2]
[1761335169226,35.94,193.47,193.46,0.2]
[1761335169424,36.63,193.47,193.46,0.2]
[1761335170028,41.79876001,193.47,193.46,0.2]
[1761335170243,44.02032004,193.47,193.46,0.2]
[1761335170437,54.89679525,193.47,193.46,0.2]
[1761335172826,70.42997152,193.47,193.46,0.2]
[1761335174218,68.20841149,193.47,193.46,0.2]
[1761335174529,70.42997152,193.47,193.46,0.2]
[1761335174732,71.68689596,193.47,193.46,0.2]
[1761335175045,71.70689596,193.47,193.46,0.2]
[1761335179922,35.74689596,193.47,193.46,0.2]
[1761335180245,71.70689596,193.47,193.46,0.2]
[1761335183153,35.74689596,193.47,193.46,0.2]
[1761335183448,71.70689596,193.47,193.46,0.2]
[1761335196942,71.70689596,193.47,193.46,1e-08]
[1761335197154,10.87647521,193.43,193.37,0.2]
[1761335197336,37.23495968,193.38,193.37,0.91]
[1761335197536,73.19495968,193.38,193.37,0.91]
[1761335197765,75.26680076,193.38,193.37,0.91]
[1761335198832,80.43796634,193.38,193.37,0.91]
[1761335199038,80.43796634,193.38,193.37,0.2]
[1761335199934,81.11796634,193.38,193.37,0.2]
[1761335200152,80.43796634,193.38,193.37,0.2]
[1761335200865,81.11796634,193.38,193.37,0.2]
[1761335205377,77.63948187,193.38,193.37,0.2]
[1761335205561,81.11796634,193.38,193.37,0.2]
[1761335208873,81.11796634,193.38,193.36,0.2]
[1761335208874,10.87647521,193.37,193.36,0.2]
[1761335209066,15.03495968,193.37,193.35,0.2]
[1761335209380,50.99495968,193.36,193.35,0.2]
[1761335209673,53.06744484,193.36,193.35,0.2]
[1761335211780,58.23914529,193.36,193.35,0.2]
[1761335211982,58.23914529,193.36,193.33,0.2]
[1761335211983,11.59647521,193.35,193.33,0.2]
[1761335212157,15.07495968,193.34,193.33,0.2]
[1761335212351,51.03495968,193.34,193.33,0.2]
[1761335212654,53.10755223,193.34,193.33,0.2]
[1761335212851,53.10755223,193.34,193.33,1e-08]
[1761335214265,58.27978767,193.34,193.33,1e-08]
[1761335214498,22.88,193.32,193.29,0.2]
[1761335214661,22.88,193.32,193.31,0.86]
[1761335214662,73.19495968,193.32,193.31,0.86]
[1761335215094,69.71647521,193.32,193.31,0.86]
[1761335215321,33.75647521,193.32,193.31,0.86]
[1761335215482,37.23495968,193.32,193.31,0.86]
[1761335215790,73.19495968,193.32,193.31,0.86]
[1761335216095,73.19495968,193.32,193.31,0.2]
[1761335216271,78.36773021,193.32,193.31,0.2]
[1761335216475,78.36773021,193.32,193.31,0.86]
[1761335216691,78.36773021,193.32,193.31,0.2]
[1761335218783,80.44032276,193.32,193.31,0.2]
[1761335221647,76.96183829,193.32,193.31,0.2]
[1761335221823,80.44032276,193.32,193.31,0.2]
[1761335224223,44.48032276,193.32,193.31,0.2]
[1761335224425,80.44032276,193.32,193.31,0.2]
[1761335225717,76.96183829,193.32,193.31,0.2]
[1761335226021,80.44032276,193.32,193.31,0.2]
[1761335226404,78.36773021,193.32,193.31,0.2]
[1761335230734,42.40773021,193.32,193.31,0.2]
[1761335230918,78.36773021,193.32,193.31,0.2]
[1761335231237,5.17277053,193.32,193.31,0.2]
[1761335231439,40.0360873,193.39,193.31,0.87]
[1761335231440,3.47848447,193.35,193.31,0.87]
[1761335231741,35.96,193.34,193.31,0.87]
[1761335231938,35.96,193.34,193.32,0.67]
[1761335232433,39.43848447,193.34,193.32,0.67]
[1761335232740,9.9801076,193.39,193.32,66.04714337]
[1761335233041,3.47848447,193.36,193.33,15.53800336]
[1761335233225,54.05914112,193.38,193.33,15.53800336]
[1761335233226,39.43848447,193.35,193.33,16.20800336]
[1761335233428,39.43848447,193.35,193.34,0.67]
[1761335234535,3.47848447,193.35,193.34,0.67]
[1761335234725,38.1876441,193.35,193.34,0.67]
[1761335237865,2.2276441,193.35,193.34,0.67]
[1761335238045,35.96,193.35,193.34,0.67]
[1761335238225,35.96,193.35,193.34,62.5686589]
[1761335238924,44.01961203,193.35,193.33,61.8986589]
[1761335239130,2.8876441,193.34,193.33,61.8986589]
[1761335239731,0.66,193.34,193.33,61.8986589]
[1761335239936,2.8876441,193.34,193.33,61.8986589]
[1761335240132,10.87647521,193.33,193.31,0.2]
[1761335240353,38.1876441,193.32,193.31,0.2]
[1761335241034,43.36041463,193.32,193.31,0.2]
[1761335242843,54.23688984,193.32,193.31,0.2]
[1761335243347,54.94688984,193.32,193.31,0.2]
[1761335244048,52.00924574,193.32,193.31,0.2]
[1761335244258,54.23688984,193.32,193.31,0.2]
[1761335244930,54.94688984,193.32,193.31,0.2]
[1761335245854,54.23688984,193.32,193.31,0.2]
[1761335246157,43.36041463,193.32,193.31,0.9]
[1761335246526,43.36041463,193.32,193.31,0.2]
[1761335246731,43.36041463,193.32,193.31,0.9]
[1761335246938,43.36041463,193.32,193.31,0.2]
[1761335247958,7.40041463,193.32,193.31,0.9]
[1761335248144,43.36041463,193.32,193.31,0.9]
[1761335249344,43.36041463,193.32,193.31,0.2]
[1761335250058,43.36041463,193.32,193.31,62.0986589]
[1761335252866,43.36041463,193.32,193.31,62.7986589]
[1761335254270,0.71,193.38,193.31,62.7986589]
[1761335254564,2.2276441,193.33,193.32,0.7]
[1761335254740,38.1876441,193.33,193.32,0.7]
[1761335255340,2.2276441,193.33,193.32,0.7]
[1761335255551,38.1876441,193.33,193.32,0.7]
[1761335255957,38.1876441,193.33,193.32,62.5986589]
[1761335257154,35.96,193.33,193.32,62.5986589]
[1761335257337,2.2276441,193.34,193.32,62.5986589]
[1761335257537,15.53961306,193.43,193.33,0.7]
[1761335257752,2.2276441,193.39,193.33,64.826303]
[1761335257962,35.96,193.38,193.34,2.2276441]
[1761335258170,35.96,193.38,193.34,18.46484274]
[1761335258335,35.96,193.38,193.35,0.7]
[1761335259860,35.96,193.38,193.35,8.09955687]
[1761335260037,35.96,193.38,193.36,0.7]
[1761335260242,35.96,193.38,193.36,18.46323354]
[1761335260657,35.96,193.38,193.37,0.7]
[1761335262042,7.39776499,193.42,193.37,0.7]
[1761335262381,35.96,193.41,193.37,8.09899251]
[1761335262557,38.1876441,193.41,193.37,5.87134841]
[1761335262758,38.1876441,193.41,193.38,0.7]
[1761335264879,2.2276441,193.41,193.38,0.7]
[1761335265168,35.96,193.4,193.38,0.7]
[1761335265382,35.96,193.4,193.38,8.09876453]
[1761335265383,35.94,193.4,193.38,8.09876453]
[1761335265673,35.94,193.4,193.38,5.87112043]
[1761335265889,35.94,193.4,193.39,0.7]
[1761335267874,35.94,193.4,193.39,62.7]
[1761335268679,49.75411931,193.4,193.35,62.0]
[1761335268857,2.2276441,193.36,193.35,62.0]
[1761335269171,18.09537182,193.42,193.36,0.7]
[1761335269377,2.2276441,193.39,193.36,62.7]
[1761335269576,38.1676441,193.38,193.36,62.0]
[1761335269778,35.94,193.37,193.36,62.69]
[1761335271156,23.57,193.44,193.36,64.9176441]
[1761335271353,2.2276441,193.42,193.37,0.69]
[1761335271869,2.2276441,193.41,193.37,0.69]
[1761335272067,2.2276441,193.42,193.37,8.0888874]
[1761335272271,35.94,193.41,193.38,0.69]
[1761335273990,35.94,193.41,193.38,5.86112968]
[1761335274388,35.94,193.41,193.39,0.69]
[1761335274691,0.69,193.44,193.39,62.69]
[1761335274990,35.94,193.43,193.39,62.69]
[1761335275185,35.94,193.43,193.4,0.69]